Cogmind - Beta 15 @@@ ROGUE MODE // 2025.05.28 @ 04:35:20 Player: Moddy Result: Destroyed by G-67 Veteran with Plasma Rifle Performance ------------- Evolutions (4) 2000 Regions Visited (5) 1000 Robots Destroyed (71) 355 Value Destroyed (2033) 2033 Prototype IDs (5) 100 Alien Tech Used (0) 0 Bonus (95) 95 TOTAL SCORE: 5583 Bonus ------- High Alert Combat Kills 95 Cogmind --------- Core Integrity 0/850 Matter 243/300 Energy 220/310 System Corruption 14% Temperature Cool (24) Movement Walking (260) Ox2 Location -6/Factory Parts ------- > --- POWER (2) -------- Fission Core > --- PROPULSION (4) --- Carbon-fiber Leg Flexi-carbon Leg > --- UTILITY (7) ------ Huge Storage Unit Improved Signal Interpreter Improved Targeting Computer Improved Target Analyzer Transmission Jammer (fused) Hacking Suite > --- WEAPON (2) ------- (None) > --- INVENTORY (25) --- Improved Treads Thermal Generator Advanced Heat Sink Compact Matter Pod (150) IFF Parser Salvage Targeting Computer EM Disruption Field Improved Heavy Machine Gun Remote Datajack Welding Torch Great Axe Peak State ------------ > --- POWER ------------ Angular Momentum Engine Light Angular Momentum Engine > --- PROPULSION ------- Carbon-fiber Leg Titanium Leg Improved Carbon-fiber Leg Armored Leg > --- UTILITY ---------- Huge Storage Unit Gravity Neutralizer Advanced Sensor Array Improved Signal Interpreter Improved Targeting Computer Transmission Jammer Hacking Suite > --- WEAPON ----------- Greatsword > --- INVENTORY -------- Light Deuterium Engine Light Deuterium Engine Light Nuclear Core Improved Treads Aluminum Leg Aluminum Leg Aluminum Leg Wheel Flight Unit Flight Unit Thermal Generator Advanced Heat Sink Compact Matter Pod Salvage Targeting Computer Improved Targeting Computer Hardened Medium Armor Plating EM Disruption Field High-powered Shock Rifle Gatling Laser Ion Cannon Guided EMP Blaster Remote Datajack Great Axe [Rating: 64] Favorites ----------- Power Light Deuterium Engine Engine Light Deuterium Engine Power Core Micro Nuclear Core Propulsion Aluminum Leg Treads Light Treads Leg Aluminum Leg Wheel Wheel Flight Unit Flight Unit Utility Huge Storage Unit Device ECM Suite Storage Huge Storage Unit Processor Improved Signal Interpreter Hackware Hacking Suite Protection Utility Shielding Weapon Ion Cannon Energy Gun EM Pulse Gun Energy Cannon Ion Cannon Ballistic Gun Gauss Rifle Launcher Guided EMP Blaster Slashing Weapon Greatsword Build | -11 -10 -9 -8 -7 -6 ------- Run | Yrd Mat Mat Mat Fac Fac Slots Evolved 8 | . . 2 2 2 2 Power 1 | . . . . 1 . Propulsion 2 | . . . 1 1 . Utility 5 | . . 2 1 . 2 Weapon . | . . . . . . Parts Attached 71 | 6 4 10 5 8 38 Power 12 | 1 . 1 1 1 8 Engine 8 | 1 . 1 1 1 4 Core 4 | . . . . . 4 Reactor . | . . . . . . Propulsion 27 | 2 2 5 1 3 14 Treads 3 | . . 2 1 . . Leg 13 | 2 . 3 . 3 5 Wheel 10 | . 2 . . . 8 Hover . | . . . . . . Flight 1 | . . . . . 1 Utility 19 | 1 2 2 2 3 9 Device 8 | . 1 . 1 1 5 Storage 3 | 1 1 1 . . . Processor 5 | . . . 1 1 3 Hackware 1 | . . . . 1 . Protection 2 | . . 1 . . 1 Artifact . | . . . . . . Weapon 13 | 2 . 2 1 1 7 Energy Gun 3 | 1 . . . . 2 Energy Cannon 3 | . . 2 1 . . Ballistic Gun 4 | 1 . . . 1 2 Ballistic Cannon . | . . . . . . Launcher 1 | . . . . . 1 Special Weapon . | . . . . . . Impact Weapon . | . . . . . . Slashing Weapon 2 | . . . . . 2 Piercing Weapon . | . . . . . . Special Melee Weapon . | . . . . . . Unidentified Prototypes 3 | . . . . . 3 Corrupted Parts 1 | . . . . . 1 System Corruption 6 | . . . . . 6 Parts Lost 37 | . 1 1 . . 35 Power 7 | . . . . . 7 Propulsion 18 | . 1 . . . 17 Utility 5 | . . . . . 5 Weapon 7 | . . 1 . . 6 Highest Loss Streak 13 | . 1 1 . . 13 To Critical Strikes 1 | . . 1 . . . Average Backups 21 | 3 8 22 24 24 22 Power 2 | . 1 2 3 3 2 Propulsion 6 | 2 4 9 8 7 5 Utility 5 | . . 3 5 6 6 Weapon 5 | . 2 5 5 6 5 Tool/Special . | . . . . . . Unused Backups 34 | . . 3 2 7 22 Power 4 | . . . 2 . 2 Propulsion 3 | . . 1 . 1 1 Utility 13 | . . 1 . 2 10 Weapon 10 | . . . . 4 6 Tool/Special 4 | . . 1 . . 3 Average Slot Usage (%) 94 | . 92 90 99 99 93 Engine 11 | . 14 11 9 14 10 Treads 7 | . . 15 26 11 . Leg 13 | . 3 1 . 15 22 Wheel 3 | . 18 2 . 3 . Device 15 | . 11 11 17 15 17 Storage 12 | . 15 22 18 14 6 Processor 8 | . . . 8 7 13 Hackware 2 | . . . . . 6 Protection 2 | . . 10 . . 1 Energy Gun 1 | . 14 1 . . . Energy Cannon 5 | . . 6 18 8 3 Ballistic Gun 5 | . 14 7 . 5 3 Peak Build Rating 64 | 6 7 13 20 38 64 Average Rating 32 | 4 6 10 17 31 51 On Entrance 14 | . 6 7 13 20 38 Naked Turns . | . . . . . . Heaviest Build 122 | 14 94 101 102 107 122 Greatest Support 66 | 20 20 40 63 55 66 Greatest Overweight (x) 10 | 1 9 9 10 10 10 Average Overweight (x) 3 | . 5 4 1 5 1 Largest Inventory Capacity 25 | 8 25 25 25 25 25 Average Capacity 24 | 6 24 25 25 25 25 Most Carried 25 | 6 13 25 25 25 25 Average Carried 22 | 4 8 22 24 24 22 Final Capacity 25 | 8 25 25 25 25 25 Final Carried 25 | 6 13 25 25 25 11 Class Distribution -------------------- 73% | Mutant 26% | Infiltrator-Mutant Dominant Class ---------------- Mutant | -10/Materials Mutant | -9/Materials Mutant | -8/Materials Mutant | -7/Factory Infiltrator-Mutant | -6/Factory Resources | -11 -10 -9 -8 -7 -6 ----------- Run | Yrd Mat Mat Mat Fac Fac Matter Collected 1992 | 242 80 427 . 219 1024 Remotely . | . . . . . . Salvage Created 3372 | . 90 399 . 133 2750 Parts 149 | . 1 33 . 10 105 Haulers Intercepted . | . . . . . . Recyclers Shooed 4 | . . . . . 4 Parts Field Recycled . | . . . . . . Retrieved Matter . | . . . . . . Parts Self-Destructed . | . . . . . . Prevented . | . . . . . . Kills | -11 -10 -9 -8 -7 -6 ------- Run | Yrd Mat Mat Mat Fac Fac Combat Hostiles Destroyed 46 | . 2 14 . 2 28 Melee 10 | . . . . . 10 Guns 19 | . 1 8 . . 10 Cannons 11 | . . 6 . 2 3 AOE 6 | . 1 . . . 5 Classes Destroyed 9 | . 1 5 . 1 2 Worker 5 | . . 1 . . 4 Builder 2 | . . 1 . . 1 Recycler 12 | . . . . . 12 Watcher 6 | . . 3 . 1 2 Swarmer 24 | . . 12 . . 12 Grunt 12 | . 2 1 . . 9 Sentry 3 | . . 1 . 1 1 Hunter 1 | . . . . . 1 Programmer 6 | . . . . 1 5 Best Kill Streak 8 | . 2 6 . 1 8 Combat Bots Only 6 | . 2 6 . 1 4 Max Kills in Single Turn 7 | . 1 2 . 1 7 Gunslinging . | . . . . . . Exploded 3 | . 1 . . . 3 Melee 1 | . . . . . 1 Uniques/NPCs Destroyed . | . . . . . . Combat | -11 -10 -9 -8 -7 -6 -------- Run | Yrd Mat Mat Mat Fac Fac Hostile Shots Fired 510 | . 13 94 4 101 298 Missed 149 | . 3 23 1 45 77 Hits 361 | . 10 71 3 56 221 Melee 9 | . . . . . 9 Projectile 352 | . 10 71 3 56 212 Critical Strikes 9 | . . 1 . 1 7 Damage Taken 5497 | . 125 655 42 504 4171 Core 1091 | . 12 110 14 91 864 Absorbed by Shields . | . . . . . . Redirected to Shielding 19 | . . 19 . . . Core Remaining (%) 90 | 100 95 72 97 87 . Volleys Fired 156 | . 10 53 1 17 75 Largest 2 | . 2 2 2 2 2 Hottest 116 | . 60 116 116 88 108 Shots Fired 280 | . 20 80 2 35 143 Gun 194 | . 20 39 . 17 118 Cannon 83 | . . 41 2 18 22 Launcher 3 | . . . . . 3 Special . | . . . . . . Kinetic 153 | . 10 34 . 17 92 Thermal 74 | . . 19 1 18 36 Explosive . | . . . . . . Electromagnetic 53 | . 10 27 1 . 15 Robot Hit Streak 16 | . 5 10 1 4 16 Robot Miss Streak 7 | . 1 4 1 7 4 Penetration Max . | . . . . . . Secondary Targets . | . . . . . . Shots Hit Robots 180 | . 15 35 1 13 116 Core Hits 105 | . 6 22 . 6 71 Critical Kills 1 | . . . . . 1 Critical Parts Destroyed 3 | . 1 1 . . 1 Critical Strikes 8 | . 1 1 . . 6 Destroy 4 | . 1 1 . . 2 Sever 4 | . . . . . 4 Melee Attacks 36 | . . . . . 36 Impact . | . . . . . . Slashing 36 | . . . . . 36 Piercing . | . . . . . . Sneak Attacks 4 | . . . . . 4 Combat Hostiles . | . . . . . . Follow-up Attacks . | . . . . . . Damage Inflicted 6484 | . 304 729 17 288 5146 Guns 2266 | . 188 261 . 167 1650 Cannons 854 | . . 383 17 121 333 Explosions 1905 | . 116 72 . . 1717 Melee 1446 | . . . . . 1446 Ramming 13 | . . 13 . . . Kinetic 1687 | . 110 228 . 167 1182 Thermal 2320 | . 116 108 17 121 1958 Explosive . | . . . . . . Electromagnetic 1018 | . 78 380 . . 560 Impact . | . . . . . . Slashing 1446 | . . . . . 1446 Piercing . | . . . . . . Highest Corruption 14 | . . . . 1 14 Average Corruption 4 | . . . . 1 5 Corruption Purged . | . . . . . . Corruption Blocked . | . . . . . . Effects 55 | . . . . 6 49 Message Errors 14 | . . . . 1 13 Matter Fused 12 | . . . . 2 10 Heat Flow Errors 3 | . . . . . 3 Energy Discharges 3 | . . . . 1 2 Parts Rejected 4 | . . . . 1 3 Parts Fused 1 | . . . . . 1 Data Loss (minor) 10 | . . . . . 10 Data Loss (major) 1 | . . . . . 1 Misfires 2 | . . . . 1 1 Alerts 2 | . . . . . 2 Misdirections 3 | . . . . . 3 Overload Shots . | . . . . . . Overflow Damage 240 | . . 6 . . 234 Projectiles 6 | . . 6 . . . Explosions 125 | . . . . . 125 Melee 109 | . . . . . 109 Knockbacks . | . . . . . . Impact . | . . . . . . Kinetic . | . . . . . . Secondary . | . . . . . . Self-Inflicted Damage 152 | . . . . . 152 Shots 3 | . . . . . 3 Rammed 2 | . . 2 . . . Targets Rammed 3 | . . 2 . 1 . Kicked 1 | . . . . 1 . Crushed . | . . . . . . Highest Temperature 344 | . 72 288 39 111 344 Average Temperature 62 | . 45 95 23 28 60 Received Heat Transfer 1315 | . 72 69 9 135 1030 Effects 3 | . . 2 . . 1 Energy Bleed 1 | . . . . . 1 Interference 2 | . . 2 . . . Siege Activations . | . . . . . . Martial Activations . | . . . . . . Shielding Activations . | . . . . . . Robots Disrupted . | . . . . . . Combat Hostiles . | . . . . . . Robots Corrupted . | . . . . . . Combat Hostiles . | . . . . . . Parts Fried 5 | . 1 4 . . . Impact Corruptions . | . . . . . . Robots Melted . | . . . . . . Combat Hostiles . | . . . . . . Parts Melted 1 | . . . . . 1 Heat Transferred 2539 | . 100 124 37 185 2093 Parts Sabotaged . | . . . . . . Parts Stolen . | . . . . . . Parts Stripped . | . . . . . . Power Chain Reactions 4 | . 1 1 . . 2 Alert | -11 -10 -9 -8 -7 -6 ------- Run | Yrd Mat Mat Mat Fac Fac Maximum Alert Level 2 | . . . . . 2 Low Security (%) 89 | 100 100 100 100 100 76 Level 1 2 | . . . . . 4 Level 2 7 | . . . . . 18 Level 3 . | . . . . . . Level 4 . | . . . . . . Level 5 . | . . . . . . High Security . | . . . . . . Max Security . | . . . . . . Peak Influence 506 | . 55 127 34 31 506 Initial 34 | . . . 34 . . Average 71 | . 9 48 3 3 138 Influence Increases 1757 | . 96 399 . 125 1137 Destroy 0b10 Robot/C 920 | . 40 280 . 40 560 Destroy 0b10 Robot/NC 125 | . . 25 . 5 95 Destroy Leader 222 | . 10 66 . 22 124 Successful Hack 56 | . 16 10 . 12 18 Disable Machine 255 | . 30 15 . 30 180 Destroy Structure 29 | . . 3 . 1 25 Partial Spotted 15 | . . . . 15 . Lose Combat Pursuer 135 | . . . . . 135 Influence Decreases 1391 | . 96 317 82 124 772 Entered New Map 49 | . . . 48 . 1 Time Decay 972 | . 86 307 34 124 421 Lost Part 370 | . 10 10 . . 350 Squads Dispatched 15 | . 1 2 . 3 9 Investigation 2 | . . . . 1 1 Extermination 7 | . . . . 2 5 Reinforcement 5 | . 1 2 . . 2 Assault 1 | . . . . . 1 Garrison . | . . . . . . Intercept . | . . . . . . Searches Triggered . | . . . . . . Construction Impeded . | . . . . . . Haulers Reinforced 1 | . . . . . 1 Active Scanning Responses . | . . . . . . Cargo Convoy Interrupts . | . . . . . . Stealth | -11 -10 -9 -8 -7 -6 --------- Run | Yrd Mat Mat Mat Fac Fac Distress Signals 10 | . 2 5 . 1 2 Communications Jammed 59 | . . . . . 59 Distress Signals 59 | . . . . . 59 Times Spotted 112 | . 10 33 4 8 57 Peak Tracking Total 8 | . 4 7 2 3 8 Tactical Retreats 17 | . 2 6 . 2 7 Traps | -11 -10 -9 -8 -7 -6 ------- Run | Yrd Mat Mat Mat Fac Fac Traps Triggered 3 | . . 1 . . 2 Indirectly . | . . . . . . Trap Hack Attempts . | . . . . . . Triggered . | . . . . . . Disarmed . | . . . . . . Reprogrammed . | . . . . . . Reused . | . . . . . . Traps Extracted . | . . . . . . Installed . | . . . . . . Triggered . | . . . . . . Machines | -11 -10 -9 -8 -7 -6 ---------- Run | Yrd Mat Mat Mat Fac Fac Machines Disabled 17 | . 2 1 . 2 12 Max in Single Turn 10 | . 1 1 . 1 10 Garrison Access 1 | . . . 1 . . Machines Repaired . | . . . . . . Machines Dismantled . | . . . . . . Machines Sabotaged . | . . . . . . Overloaded Fab Kills . | . . . . . . Hacking | -11 -10 -9 -8 -7 -6 --------- Run | Yrd Mat Mat Mat Fac Fac Machines Accessed 17 | . 2 2 2 3 8 Terminals 11 | . 2 2 1 2 4 Fabricators 3 | . . . . 1 2 Repair Stations . | . . . . . . Recycling Units 1 | . . . . . 1 Scanalyzers 1 | . . . . . 1 Garrison Access 1 | . . . 1 . . Total Hacks 36 | . 6 6 5 6 13 Successful 20 | . 4 5 2 3 6 Failed 16 | . 2 1 3 3 7 Catastrophic 3 | . . . . 1 2 Database Lockouts . | . . . . . . Manual . | . . . . . . Terminals 26 | . 6 6 4 3 7 Fabricators 6 | . . . . 3 3 Repair Stations . | . . . . . . Recycling Units 1 | . . . . . 1 Scanalyzers 2 | . . . . . 2 Garrison Access 1 | . . . 1 . . Terminal Hacks 13 | . 4 5 1 1 2 Part Schematic 1 | . . . . 1 . Prototype ID Bank 1 | . . 1 . . . Branch Access Points 1 | . 1 . . . . Emergency Access Points 1 | . . . 1 . . Alert Level 3 | . . 1 . . 2 Locate Traps 1 | . 1 . . . . Dispatch Records 1 | . . 1 . . . Hauler Manifests 1 | . 1 . . . . Zone Layout 3 | . 1 2 . . . Fabricator Hacks 4 | . . . . 2 2 Load Schematic 2 | . . . . 1 1 Build 2 | . . . . 1 1 Repair Station Hacks . | . . . . . . Recycling Unit Hacks . | . . . . . . Scanalyzer 2 | . . . . . 2 Insert Component 1 | . . . . . 1 Analyze 1 | . . . . . 1 Garrison Access Hacks 1 | . . . 1 . . Seal Access 1 | . . . 1 . . Unauthorized Hacks . | . . . . . . Terminals . | . . . . . . Fabricators . | . . . . . . Repair Stations . | . . . . . . Recycling Units . | . . . . . . Scanalyzers . | . . . . . . Garrison Access . | . . . . . . Data Cores Recovered . | . . . . . . Used . | . . . . . . Hacking Detections 15 | . 2 1 1 3 8 Full Trace Events 2 | . . . . 1 1 Feedback Events . | . . . . . . Feedback Blocked . | . . . . . . Robot Schematics Acquired . | . . . . . . Robots Built . | . . . . . . Authchips . | . . . . . . Time . | . . . . . . Total Robot Build Rating . | . . . . . . Part Schematics Acquired 2 | . . . . 1 1 Parts Built 4 | . . . . 2 2 Authchips . | . . . . . . Time 137 | . . . . 42 95 Total Part Build Rating 18 | . . . . 8 10 Parts Repaired . | . . . . . . Time . | . . . . . . Parts Recycled . | . . . . . . Recycled Matter . | . . . . . . Retrieved Matter . | . . . . . . Retrieved Components . | . . . . . . Parts Scanalyzed 1 | . . . . . 1 Part Schematics Acquired 1 | . . . . . 1 Parts Damaged . | . . . . . . Bothacking | -11 -10 -9 -8 -7 -6 ------------ Run | Yrd Mat Mat Mat Fac Fac Used RIF Installer . | . . . . . . Robots Hacked . | . . . . . . Non-combat . | . . . . . . Combat . | . . . . . . Robot Hacks Applied . | . . . . . . Relay Couplers Released . | . . . . . . Fabnet Peak Effective % . | . . . . . . Robots Rewired . | . . . . . . Allies Hacked . | . . . . . . Hacks Repelled . | . . . . . . Allies | -11 -10 -9 -8 -7 -6 -------- Run | Yrd Mat Mat Mat Fac Fac Total Allies . | . . . . . . Largest Group . | . . . . . . Highest-Rated Group . | . . . . . . Highest-Rated Ally . | . . . . . . Total Orders . | . . . . . . Ally Attacks . | . . . . . . Total Damage . | . . . . . . Kills . | . . . . . . Allies Corrupted . | . . . . . . Allies Melted . | . . . . . . Intel | -11 -10 -9 -8 -7 -6 ------- Run | Yrd Mat Mat Mat Fac Fac Active Infowar (turns) 5476 | . 387 1054 391 1224 2420 Sensors 3694 | . . . 390 1221 2083 IFF 241 | . . . . . 241 Jamming 2419 | . . . . . 2419 ECM 4511 | . 387 1054 391 1224 1455 Robot Analysis Total . | . . . . . . Derelict Logs Recovered . | . . . . . . Drone Launches . | . . . . . . Drone Recoveries . | . . . . . . Exploration | -11 -10 -9 -8 -7 -6 ------------- Run | Yrd Mat Mat Mat Fac Fac Turns Passed 5631 | 72 451 1054 391 1224 2439 Spaces Moved 2184 | 48 228 305 148 538 917 Core 4 | 4 . . . . . Treads 337 | . . 197 140 . . Legs 1212 | 44 22 7 . 289 850 Wheels 631 | . 206 101 8 249 67 Hover . | . . . . . . Flight . | . . . . . . Fastest Speed 50 | 50 120 215 230 192 115 Average Speed 214 | 120 171 287 239 209 203 Slowest Speed 750 | 190 400 400 240 230 750 Overloaded Moves . | . . . . . . Propulsion Burnouts . | . . . . . . Robots Hopped . | . . . . . . Potential Cave-ins . | . . . . . . Cave-ins Triggered . | . . . . . . Exploration Rate (%) 19 | 4 24 28 19 15 25 Regions Visited 5 Branch Regions . Pre-discovered Areas . | . . . . . . Known Exits Taken 2 | . . . 1 1 . Unknown Exits Taken 3 | 1 1 1 . . . Scrap Searched . | . . . . . . Spaces Dug 1 | . . . . . 1 Terrain Destroyed 29 | . . 3 . . 26 Melee . | . . . . . . Projectile 1 | . . . . . 1 AOE 28 | . . 3 . . 25 Terrain Rammed . | . . . . . . Walls Destroyed . | . . . . . . Machines Disabled . | . . . . . . Actions | -11 -10 -9 -8 -7 -6 --------- Run | Yrd Mat Mat Mat Fac Fac Total 2819 | 59 267 398 188 607 1300 Wait 210 | . 19 2 22 19 148 Move 2179 | 47 227 304 147 537 917 Hop . | . . . . . . Pick Up 78 | 6 7 20 5 11 29 Fast Attach 23 | 6 1 . . 1 15 Attach 42 | . . 4 2 2 34 Detach 7 | . . . . . 7 Swap 35 | . 3 9 5 9 9 Drop 50 | . . 4 6 10 30 Fire 156 | . 10 53 1 17 75 Melee 36 | . . . . . 36 Ram . | . . . . . . Kick 1 | . . . . 1 . Crush 2 | . . 2 . . . Escape Stasis . | . . . . . . Rewire . | . . . . . . Trap . | . . . . . . Miscellaneous . | . . . . . . Route ------- -11/Scrapyard -10/Materials (discovered 2 exits: *Mat / Min) -9/Materials -8/Materials -7/Factory -6/Factory History --------- Turn | Location | Event 37 | -11/Scrapyard | Discovered new exit (range 15) 73 | -11/Scrapyard | Entered Materials 148 | -10/Materials | Identified exit to Mines 310 | -10/Materials | Build established: Mutant 458 | -10/Materials | Discovered new exit (range 9) 524 | -10/Materials | Entered another Materials area 524 | -9/Materials | Evolved 2 slots: Utility x2 1530 | -9/Materials | Discovered new exit (range 16) 1578 | -9/Materials | Entered another Materials area 1578 | -8/Materials | Evolved 2 slots: Propulsion x1, Utility x1 1960 | -8/Materials | Discovered new exit (range 5) 1967 | -8/Materials | Identified exit to Factory 1969 | -8/Materials | Entered Factory 1969 | -7/Factory | Evolved 2 slots: Power x1, Propulsion x1 3036 | -7/Factory | Discovered new exit (range 15) 3063 | -7/Factory | Identified exit to Factory 3133 | -7/Factory | Fabricated Imp. Shield Generator? 3193 | -7/Factory | Entered another Factory area 3193 | -6/Factory | Evolved 2 slots: Utility x2 3501 | -6/Factory | Build established: Infiltrator-Mutant 4965 | -6/Factory | Build established: Mutant 5106 | -6/Factory | Fabricated Imp. Particle Charger? 5108 | -6/Factory | Lost 3 parts (1p1n1w) 5257 | -6/Factory | Lost 4 parts (3n1u) 5293 | -6/Factory | First assault squad dispatched 5330 | -6/Factory | Lost 5 parts (1p1n2u1w) 5360 | -6/Factory | System corruption reached 10% 5463 | -6/Factory | Lost 3 parts (2n1w) 5591 | -6/Factory | Core integrity fell below 50% 5593 | -6/Factory | Spotted B-75 Beast 5615 | -6/Factory | Core integrity fell below 20% 5632 | -6/Factory | Destroyed by G-67 Veteran with Plasma Rifle Last Messages --------------- I-36 Angel distress signal jammed. W-25 Informer distress signal jammed. I-36 Angel distress signal jammed. Aluminum Leg destroyed. W-25 Informer distress signal jammed. I-36 Angel distress signal jammed. W-25 Informer distress signal jammed. I-36 Angel distress signal jammed. W-25 Informer distress signal jammed. I-36 Angel distress signal jammed. W-25 Informer distress signal jammed. I-36 Angel distress signal jammed. W-25 Informer distress signal jammed. Critical hit (Burn: +37). Identified Fission Core. System corrupted: Matter fused (-7). U-05 Engineer builds a Wall. Acquired Wheel. Arm. Leg destroyed. Wheel destroyed. Map ----- +----------------------------------------------------+ | ?????????????????????????????????????????????????? | | ?????????????????????????????????????????????????? | | ?????????????????????????????????????????????????? | | ?????????????????????????????????????????????????? | | ?????????????????????????????????????????????????? | | ?????????????????????????????????????????????????? | | ?????????????????????????????????????????????????? | | ?????????????????????????????????????????????????? | | ?????????????????????????????????????????????????? | | ?????????????????????????????????????????????????? | | ????????????????????????????????????? ??????????? | | ???????????????????????????????????# ??????????? | | ???????????????????????????????????# ?#????????? | | ???????????????????????############# ? ????? ?? | | ???????????????????????# !## ? ???? ? | | ???????????????????????# ] ## #"#???? "? | | ???????????????????????# ! # ??/ "? | | ???????????????????????# # ??? ?? | | ???????????????????????# + ? ??? | | ???????????????????????# # ? ???? | | ???????????????????????# # ? ????? | | ???????????????????????# # ###+###??? | | ???????????????????????# # ^ # #??? | | ???????????????????????# # # " " #??? | | ???????????????????????# # # " " #??? | | ???????????????????????# @ BB % # " " #??? | | ???????????????????????# BB #%" " #??? | | ???????????????????????# l #u #%"%" #??? | | ???????????????????????# gg # # " " #??? | | ??????????????????????#######g#;### # " " #??? | | ??????????????? i #%" " #??? | | ??????????????? #=" " #??? | | ??????????????? #! ![ #??? | | ???????????????? # % #### | | ???????????????? ##+##### | | ?????????????????################## #???#"" | | ??????????????????????????????????# #####"Y | | ??????????????????????????????????# #"" | | ??????????????????????????????????# # | | ??????????????????????????????????# + | | ??????????????????????????????????# # | | ??????????????????????????????????# # | | ??????????????????????????????????######## # | | ?????????????????????????????????????????# ### | | ?????????????????????????????????????????# | | ?????????????????????????????????????????+ | | ???????????????########??????????????????# | | ???????????????# =* #??????????????????# | | ???????????????# [= #??????????????????# | | ???????????????#![ *#??????????????????######### | +----------------------------------------------------+ Best States ------------- Heat Dissipation 37 Energy Generation 31 Energy Capacity 350 Matter Stores 500 Matter Capacity 500 Sight Range 16 Robot Scan Range 16 Terrain Scan Density 10 ECM Strength 1 Jamming Range 12 Armor Coverage 225 Utility Shielding 33 Evasion (%) 45 Targeting Accuracy 6 Target Analysis 6 Recoil Reduction 3 Energy Filtering 30 Offensive Hacking 10 Item Schematics ----------------- Imp. Particle Charger | -7/Factory | Hacked Scythe | -6/Factory | Scanalyzed Robot Schematics ------------------ None Fabricated ------------ Imp. Shield Generator | x2 | -7/Factory | Preloaded Imp. Particle Charger | x2 | -6/Factory Repaired ---------- Nothing Alien Tech Used ----------------- None Achievements -------------- None Challenges ------------ None Game ------ Seed AbsorptionHoverDrivehammer Manual? 0 Play Time 00:42:29 Cumulative 23.2 hours Start 2025.05.28 @ 03:52:39 End 2025.05.28 @ 04:35:20 Sessions 1 Manual Loads 0 Difficulty Rogue Special Mode None Game No. 40 Rogue 40 Adventurer 0 Explorer 0 Win Type - Total 0 Types 0/0/0/0/0/0/0/0/0/0 Lore% 11 Gallery% 29 Achievement% 24 Wizard Run 0 Options --------- Layout 1 ASCII 0 Keyboard 0 Movement Mouse Keybinds 0 Fullscreen 1 Font 32/SmallcapsGlow Map View 77x35 Zoom Use 0% Tactical HUD 0 Map Filters NONE Filters NONE Steam 1 RUN: d6e7f0c1-5a63-40f0-bc36-8ca35986d022